[Event "Titled Tuesday Blitz December 20 Late 2022"]
[White "Haydon, David L"]
[Black "Moreno Perez, Tobias Sebastian"]
[WhiteFideId "415405"]
[BlackFideId "186716"]
[WhiteElo "2318"]
[BlackElo "2259"]
[Result "1-0"]
[Round "08"]
[TimeControl "180+1"]
[Date "2022.12.21"]
[WhiteClock "0:01:57"]
[BlackClock "0:01:09"]

1. e4 {[%clk 0:02:59]}  c6 {[%clk 0:02:59]} 2. d4 {[%clk 0:02:59]}  d5 {[%clk 0:03:00]} 3. Nd2 {[%clk 0:02:59]}  dxe4 {[%clk 0:03:00]} 4. Nxe4 {[%clk 0:03:00]}  Nf6 {[%clk 0:03:00]} 5. Ng3 {[%clk 0:03:00]}  h5 {[%clk 0:02:59]} 6. h4 {[%clk 0:02:59]}  Bg4 {[%clk 0:02:58]} 7. Be2 {[%clk 0:02:58]}  Bxe2 {[%clk 0:02:58]} 8. N1xe2 {[%clk 0:02:58]}  g6 {[%clk 0:02:59]} 9. Bf4 {[%clk 0:02:58]}  Bg7 {[%clk 0:02:59]} 10. c3 {[%clk 0:02:59]}  O-O {[%clk 0:02:59]} 11. Qb3 {[%clk 0:02:59]}  Qb6 {[%clk 0:02:59]} 12. Be5 {[%clk 0:02:59]}  Nbd7 {[%clk 0:02:56]} 13. Bxf6 {[%clk 0:02:56]}  Bxf6 {[%clk 0:02:52]} 14. Ne4 {[%clk 0:02:53]}  Bg7 {[%clk 0:02:50]} 15. O-O-O {[%clk 0:02:52]}  Qxb3 {[%clk 0:02:19]} 16. axb3 {[%clk 0:02:51]}  Nf6 {[%clk 0:02:20]} 17. Nc5 {[%clk 0:02:49]}  b6 {[%clk 0:02:18]} 18. Nd3 {[%clk 0:02:49]}  Ne4 {[%clk 0:02:11]} 19. Rhf1 {[%clk 0:02:41]}  c5 {[%clk 0:02:09]} 20. dxc5 {[%clk 0:02:40]}  bxc5 {[%clk 0:02:10]} 21. f3 {[%clk 0:02:38]}  Nd6 {[%clk 0:02:01]} 22. Nxc5 {[%clk 0:02:37]}  Nf5 {[%clk 0:02:01]} 23. Rh1 {[%clk 0:02:29]}  Ne3 {[%clk 0:01:54]} 24. Rd7 {[%clk 0:02:25]}  Rfc8 {[%clk 0:01:50]} 25. Ne4 {[%clk 0:02:21]}  Rab8 {[%clk 0:01:30]} 26. Rxe7 {[%clk 0:02:16]}  Rxb3 {[%clk 0:01:30]} 27. Nd2 {[%clk 0:02:11]}  Nf5 {[%clk 0:01:18]} 28. Rxf7 {[%clk 0:02:00]}  Rbxc3+ {[%clk 0:01:13]} 29. bxc3 {[%clk 0:01:59]}  Kxf7 {[%clk 0:01:13]} 30. Ne4 {[%clk 0:01:58]}  Ne3 {[%clk 0:01:09]} 31. Nd6+ {[%clk 0:01:57]} 1-0


[Site "https://www.chess.com"]

[Event "Titled Tuesday Blitz December 20 Late 2022"]
[White "Holt, Conrad"]
[Black "Matinian, Nikita"]
[WhiteFideId "2034387"]
[BlackFideId "24129100"]
[WhiteElo "2592"]
[BlackElo "2422"]
[Result "0-1"]
[Round "08"]
[TimeControl "180+1"]
[Date "2022.12.20"]
[WhiteClock "0:00:47"]
[BlackClock "0:00:34"]

1. d4 {[%clk 0:03:00]}  Nf6 {[%clk 0:03:00]} 2. c4 {[%clk 0:03:01]}  e6 {[%clk 0:03:01]} 3. Nc3 {[%clk 0:03:01]}  Bb4 {[%clk 0:03:01]} 4. Qc2 {[%clk 0:03:02]}  d6 {[%clk 0:02:57]} 5. e4 {[%clk 0:02:57]}  c5 {[%clk 0:02:47]} 6. d5 {[%clk 0:02:56]}  O-O {[%clk 0:02:40]} 7. Bd3 {[%clk 0:02:55]}  b5 {[%clk 0:02:39]} 8. Ne2 {[%clk 0:02:54]}  bxc4 {[%clk 0:02:37]} 9. Bxc4 {[%clk 0:02:54]}  exd5 {[%clk 0:02:37]} 10. exd5 {[%clk 0:02:53]}  Nbd7 {[%clk 0:02:36]} 11. O-O {[%clk 0:02:51]}  Ne5 {[%clk 0:02:15]} 12. Bb5 {[%clk 0:02:51]}  Rb8 {[%clk 0:01:48]} 13. Bg5 {[%clk 0:02:47]}  h6 {[%clk 0:01:48]} 14. Bh4 {[%clk 0:02:46]}  Ng6 {[%clk 0:01:32]} 15. Bg3 {[%clk 0:02:42]}  Nh5 {[%clk 0:01:27]} 16. Ba4 {[%clk 0:02:19]}  Nxg3 {[%clk 0:01:26]} 17. hxg3 {[%clk 0:02:17]}  Ba6 {[%clk 0:01:23]} 18. Rfd1 {[%clk 0:02:12]}  Qf6 {[%clk 0:01:07]} 19. Ne4 {[%clk 0:02:10]}  Qe5 {[%clk 0:01:08]} 20. f4 {[%clk 0:01:52]}  Qe7 {[%clk 0:01:00]} 21. f5 {[%clk 0:01:51]}  Ne5 {[%clk 0:00:48]} 22. f6 {[%clk 0:01:51]}  gxf6 {[%clk 0:00:49]} 23. Rf1 {[%clk 0:01:42]}  Ng4 {[%clk 0:00:44]} 24. Rf4 {[%clk 0:01:13]}  f5 {[%clk 0:00:44]} 25. N4c3 {[%clk 0:00:59]}  Qe3+ {[%clk 0:00:41]} 26. Kh1 {[%clk 0:00:59]}  Bxc3 {[%clk 0:00:38]} 27. Rxg4+ {[%clk 0:00:46]}  fxg4 {[%clk 0:00:37]} 28. Nxc3 {[%clk 0:00:47]}  Qxg3 {[%clk 0:00:34]} 0-1


[Site "https://www.chess.com"]

[Event "Titled Tuesday Blitz December 20 Late 2022"]
[White "Jaracz, Pawel"]
[Black "Jobava, Baadur"]
[WhiteFideId "1102222"]
[BlackFideId "13601520"]
[WhiteElo "2460"]
[BlackElo "2582"]
[Result "0-1"]
[Round "08"]
[TimeControl "180+1"]
[Date "2022.12.20"]
[WhiteClock "0:00:01"]
[BlackClock "0:00:45"]

1. Nf3 {[%clk 0:03:00]}  d5 {[%clk 0:02:54]} 2. b4 {[%clk 0:03:00]}  Bg4 {[%clk 0:02:47]} 3. Bb2 {[%clk 0:02:53]}  Bxf3 {[%clk 0:02:46]} 4. exf3 {[%clk 0:02:50]}  e6 {[%clk 0:02:47]} 5. b5 {[%clk 0:02:50]}  Nf6 {[%clk 0:02:45]} 6. Be2 {[%clk 0:02:47]}  c5 {[%clk 0:02:40]} 7. O-O {[%clk 0:02:41]}  Nbd7 {[%clk 0:02:41]} 8. a4 {[%clk 0:02:40]}  Bd6 {[%clk 0:02:39]} 9. g3 {[%clk 0:02:39]}  O-O {[%clk 0:02:36]} 10. c4 {[%clk 0:02:27]}  Re8 {[%clk 0:02:32]} 11. d3 {[%clk 0:02:23]}  Be5 {[%clk 0:02:30]} 12. Nc3 {[%clk 0:02:11]}  Bd4 {[%clk 0:02:30]} 13. Qb3 {[%clk 0:02:06]}  h5 {[%clk 0:02:27]} 14. f4 {[%clk 0:02:06]}  g6 {[%clk 0:02:26]} 15. Bf3 {[%clk 0:02:06]}  dxc4 {[%clk 0:02:20]} 16. dxc4 {[%clk 0:02:04]}  Rb8 {[%clk 0:02:18]} 17. a5 {[%clk 0:01:57]}  h4 {[%clk 0:02:15]} 18. a6 {[%clk 0:01:46]}  b6 {[%clk 0:02:13]} 19. Rad1 {[%clk 0:01:46]}  e5 {[%clk 0:02:11]} 20. Ne2 {[%clk 0:01:09]}  Bxb2 {[%clk 0:01:54]} 21. Qxb2 {[%clk 0:01:09]}  Qc7 {[%clk 0:01:54]} 22. Bc6 {[%clk 0:01:03]}  h3 {[%clk 0:01:49]} 23. f5 {[%clk 0:00:48]}  gxf5 {[%clk 0:01:22]} 24. Qd2 {[%clk 0:00:48]}  f4 {[%clk 0:01:21]} 25. gxf4 {[%clk 0:00:40]}  Rbd8 {[%clk 0:01:18]} 26. f5 {[%clk 0:00:37]}  Kf8 {[%clk 0:01:11]} 27. Kh1 {[%clk 0:00:29]}  Ke7 {[%clk 0:01:10]} 28. Nc3 {[%clk 0:00:19]}  e4 {[%clk 0:01:03]} 29. Qg5 {[%clk 0:00:17]}  Ne5 {[%clk 0:00:56]} 30. Nd5+ {[%clk 0:00:16]}  Rxd5 {[%clk 0:00:56]} 31. Rxd5 {[%clk 0:00:13]}  Nf3 {[%clk 0:00:52]} 32. Qg3 {[%clk 0:00:12]}  Qxg3 {[%clk 0:00:52]} 33. hxg3 {[%clk 0:00:11]}  Nxd5 {[%clk 0:00:51]} 34. Bxe8 {[%clk 0:00:11]}  Nf6 {[%clk 0:00:45]} 35. Bc6 {[%clk 0:00:11]}  Kd6 {[%clk 0:00:46]} 36. Rd1+ {[%clk 0:00:10]}  Ke5 {[%clk 0:00:46]} 37. Rf1 {[%clk 0:00:01]}  Kxf5 {[%clk 0:00:45]} 0-1


[Site "https://www.chess.com"]

[Event "Titled Tuesday Blitz December 20 Late 2022"]
[White "Kamsky, Gata"]
[Black "Caruana, Fabiano"]
[WhiteFideId "2000024"]
[BlackFideId "2020009"]
[WhiteElo "2666"]
[BlackElo "2847"]
[Result "0-1"]
[Round "08"]
[TimeControl "180+1"]
[Date "2022.12.20"]
[WhiteClock "0:00:15"]
[BlackClock "0:00:08"]

1. e4 {[%clk 0:02:59]}  c5 {[%clk 0:02:59]} 2. Nf3 {[%clk 0:02:59]}  Nc6 {[%clk 0:02:59]} 3. d4 {[%clk 0:02:57]}  cxd4 {[%clk 0:02:59]} 4. Nxd4 {[%clk 0:02:58]}  Nf6 {[%clk 0:03:00]} 5. Nc3 {[%clk 0:02:57]}  e5 {[%clk 0:03:00]} 6. Ndb5 {[%clk 0:02:56]}  d6 {[%clk 0:03:01]} 7. Bg5 {[%clk 0:02:56]}  a6 {[%clk 0:03:01]} 8. Na3 {[%clk 0:02:56]}  b5 {[%clk 0:03:02]} 9. Nd5 {[%clk 0:02:55]}  Be7 {[%clk 0:03:02]} 10. Bxf6 {[%clk 0:02:55]}  Bxf6 {[%clk 0:03:03]} 11. c4 {[%clk 0:02:54]}  b4 {[%clk 0:03:03]} 12. Nc2 {[%clk 0:02:54]}  a5 {[%clk 0:03:03]} 13. Be2 {[%clk 0:02:54]}  O-O {[%clk 0:03:04]} 14. O-O {[%clk 0:02:53]}  Bg5 {[%clk 0:03:03]} 15. Bg4 {[%clk 0:02:52]}  Be6 {[%clk 0:03:02]} 16. b3 {[%clk 0:02:47]}  g6 {[%clk 0:02:46]} 17. Bxe6 {[%clk 0:02:46]}  fxe6 {[%clk 0:02:45]} 18. Nde3 {[%clk 0:02:47]}  Nd4 {[%clk 0:02:35]} 19. Nxd4 {[%clk 0:02:31]}  exd4 {[%clk 0:02:35]} 20. Nc2 {[%clk 0:02:31]}  e5 {[%clk 0:02:22]} 21. Ne1 {[%clk 0:02:30]}  Kg7 {[%clk 0:02:15]} 22. Nd3 {[%clk 0:02:29]}  Qe7 {[%clk 0:02:14]} 23. Qe2 {[%clk 0:02:11]}  Rfb8 {[%clk 0:02:09]} 24. g3 {[%clk 0:02:11]}  a4 {[%clk 0:02:05]} 25. f4 {[%clk 0:02:11]}  Bf6 {[%clk 0:02:05]} 26. f5 {[%clk 0:02:10]}  axb3 {[%clk 0:02:02]} 27. axb3 {[%clk 0:02:09]}  Ra3 {[%clk 0:02:02]} 28. Rab1 {[%clk 0:02:07]}  Rf8 {[%clk 0:01:15]} 29. h4 {[%clk 0:01:59]}  Qa7 {[%clk 0:01:06]} 30. Kg2 {[%clk 0:01:45]}  Ra2 {[%clk 0:01:02]} 31. Rb2 {[%clk 0:01:44]}  Rxb2 {[%clk 0:00:57]} 32. Qxb2 {[%clk 0:01:44]}  Qb7 {[%clk 0:00:55]} 33. Qe2 {[%clk 0:01:36]}  Bd8 {[%clk 0:00:52]} 34. fxg6 {[%clk 0:01:35]}  Rxf1 {[%clk 0:00:48]} 35. Kxf1 {[%clk 0:01:35]}  hxg6 {[%clk 0:00:48]} 36. Kg2 {[%clk 0:01:32]}  Qd7 {[%clk 0:00:38]} 37. Qf3 {[%clk 0:01:26]}  Qb7 {[%clk 0:00:33]} 38. Kh3 {[%clk 0:01:22]}  Qa8 {[%clk 0:00:31]} 39. Nxb4 {[%clk 0:01:08]}  Qa1 {[%clk 0:00:30]} 40. Kg4 {[%clk 0:00:50]}  Qc1 {[%clk 0:00:21]} 41. Nd3 {[%clk 0:00:42]}  Qc2 {[%clk 0:00:22]} 42. c5 {[%clk 0:00:38]}  Qxb3 {[%clk 0:00:20]} 43. Kh3 {[%clk 0:00:26]}  dxc5 {[%clk 0:00:20]} 44. Qg4 {[%clk 0:00:15]}  Qxd3 {[%clk 0:00:20]} 45. Qd7+ {[%clk 0:00:16]}  Kh6 {[%clk 0:00:21]} 46. Qxd8 {[%clk 0:00:16]}  Qf1+ {[%clk 0:00:21]} 47. Kh2 {[%clk 0:00:16]}  Kg7 {[%clk 0:00:07]} 48. Qe7+ {[%clk 0:00:16]}  Qf7 {[%clk 0:00:07]} 49. Qxe5+ {[%clk 0:00:16]}  Kh7 {[%clk 0:00:07]} 50. Qxc5 {[%clk 0:00:16]}  Qd7 {[%clk 0:00:08]} 51. Qc2 {[%clk 0:00:15]}  d3 {[%clk 0:00:08]} 52. Qd2 {[%clk 0:00:15]}  Qd4 {[%clk 0:00:08]} 53. e5 {[%clk 0:00:15]}  Qe4 {[%clk 0:00:09]} 54. e6 {[%clk 0:00:15]}  Qe2+ {[%clk 0:00:08]} 0-1


[Site "https://www.chess.com"]

[Event "Titled Tuesday Blitz December 20 Late 2022"]
[White "Kazakouski, Valery"]
[Black "Sokolovsky, Yahli"]
[WhiteFideId "13507443"]
[BlackFideId "2820242"]
[WhiteElo "2516"]
[BlackElo "2316"]
[Result "1-0"]
[Round "08"]
[TimeControl "180+1"]
[Date "2022.12.20"]
[WhiteClock "0:00:40"]
[BlackClock "0:00:01"]

1. Nf3 {[%clk 0:03:00]}  d5 {[%clk 0:02:52]} 2. c4 {[%clk 0:03:00]}  c6 {[%clk 0:02:52]} 3. g3 {[%clk 0:03:00]}  Bg4 {[%clk 0:02:51]} 4. Bg2 {[%clk 0:02:59]}  Bxf3 {[%clk 0:02:51]} 5. Bxf3 {[%clk 0:03:00]}  e6 {[%clk 0:02:52]} 6. Qc2 {[%clk 0:02:58]}  Nd7 {[%clk 0:02:50]} 7. Bg2 {[%clk 0:02:58]}  Bd6 {[%clk 0:02:48]} 8. d3 {[%clk 0:02:50]}  Ngf6 {[%clk 0:02:48]} 9. Nd2 {[%clk 0:02:50]}  O-O {[%clk 0:02:47]} 10. Nf3 {[%clk 0:02:50]}  e5 {[%clk 0:02:47]} 11. O-O {[%clk 0:02:50]}  Qe7 {[%clk 0:02:46]} 12. Nh4 {[%clk 0:02:48]}  Qe6 {[%clk 0:02:45]} 13. b3 {[%clk 0:02:42]}  a5 {[%clk 0:02:40]} 14. Bb2 {[%clk 0:02:41]}  a4 {[%clk 0:02:40]} 15. e3 {[%clk 0:02:39]}  h6 {[%clk 0:02:39]} 16. Nf3 {[%clk 0:02:35]}  Ra6 {[%clk 0:02:34]} 17. Rab1 {[%clk 0:02:32]}  axb3 {[%clk 0:02:33]} 18. axb3 {[%clk 0:02:32]}  Rfa8 {[%clk 0:02:31]} 19. Ra1 {[%clk 0:02:29]}  Qe8 {[%clk 0:02:18]} 20. h3 {[%clk 0:02:21]}  Rxa1 {[%clk 0:02:09]} 21. Rxa1 {[%clk 0:02:22]}  Rxa1+ {[%clk 0:02:10]} 22. Bxa1 {[%clk 0:02:23]}  Qa8 {[%clk 0:02:10]} 23. Bc3 {[%clk 0:02:18]}  Qa3 {[%clk 0:01:53]} 24. Nd2 {[%clk 0:02:14]}  Nc5 {[%clk 0:01:47]} 25. d4 {[%clk 0:02:07]}  exd4 {[%clk 0:01:43]} 26. Bxd4 {[%clk 0:02:08]}  Nfe4 {[%clk 0:01:21]} 27. Nxe4 {[%clk 0:02:03]}  dxe4 {[%clk 0:01:21]} 28. Bxc5 {[%clk 0:02:01]}  Bxc5 {[%clk 0:01:19]} 29. Bxe4 {[%clk 0:02:02]}  Qa1+ {[%clk 0:01:13]} 30. Kg2 {[%clk 0:02:01]}  g6 {[%clk 0:01:14]} 31. h4 {[%clk 0:02:01]}  h5 {[%clk 0:01:14]} 32. Qd3 {[%clk 0:01:52]}  Qf6 {[%clk 0:01:07]} 33. Bf3 {[%clk 0:01:40]}  Qd6 {[%clk 0:01:04]} 34. Qc2 {[%clk 0:01:34]}  Kg7 {[%clk 0:01:02]} 35. Qe4 {[%clk 0:01:21]}  Qe7 {[%clk 0:01:00]} 36. Qf4 {[%clk 0:01:19]}  Qd6 {[%clk 0:01:00]} 37. Qe4 {[%clk 0:01:15]}  Qe7 {[%clk 0:01:00]} 38. Qb1 {[%clk 0:01:16]}  Qe5 {[%clk 0:01:00]} 39. b4 {[%clk 0:01:15]}  Be7 {[%clk 0:00:56]} 40. Qb3 {[%clk 0:01:07]}  Bf6 {[%clk 0:00:46]} 41. b5 {[%clk 0:01:05]}  cxb5 {[%clk 0:00:43]} 42. cxb5 {[%clk 0:01:05]}  b6 {[%clk 0:00:44]} 43. Bd5 {[%clk 0:01:06]}  Qc7 {[%clk 0:00:40]} 44. Qd3 {[%clk 0:01:01]}  Qc3 {[%clk 0:00:38]} 45. Qe4 {[%clk 0:00:59]}  Qe5 {[%clk 0:00:39]} 46. Qc4 {[%clk 0:00:59]}  Qc3 {[%clk 0:00:38]} 47. Bxf7 {[%clk 0:00:58]}  Qxc4 {[%clk 0:00:39]} 48. Bxc4 {[%clk 0:00:58]}  Bc3 {[%clk 0:00:39]} 49. Be2 {[%clk 0:00:53]}  Kf6 {[%clk 0:00:39]} 50. g4 {[%clk 0:00:53]}  hxg4 {[%clk 0:00:38]} 51. Bxg4 {[%clk 0:00:54]}  Be1 {[%clk 0:00:33]} 52. Be2 {[%clk 0:00:54]}  Kf5 {[%clk 0:00:32]} 53. Bd3+ {[%clk 0:00:54]}  Kf6 {[%clk 0:00:32]} 54. Kf1 {[%clk 0:00:54]}  Bc3 {[%clk 0:00:33]} 55. f4 {[%clk 0:00:49]}  Kg7 {[%clk 0:00:31]} 56. Kf2 {[%clk 0:00:49]}  Kh6 {[%clk 0:00:32]} 57. Kg3 {[%clk 0:00:45]}  Bd2 {[%clk 0:00:28]} 58. e4 {[%clk 0:00:45]}  Kh5 {[%clk 0:00:22]} 59. e5 {[%clk 0:00:44]}  Kh6 {[%clk 0:00:23]} 60. Kg4 {[%clk 0:00:43]}  Bb4 {[%clk 0:00:15]} 61. Bc4 {[%clk 0:00:40]}  Be7 {[%clk 0:00:14]} 62. Bf7 {[%clk 0:00:40]}  Kg7 {[%clk 0:00:07]} 63. Be8 {[%clk 0:00:40]}  Bb4 {[%clk 0:00:03]} 64. h5 {[%clk 0:00:40]}  gxh5+ {[%clk 0:00:03]} 65. Bxh5 {[%clk 0:00:41]}  Bd2 {[%clk 0:00:04]} 66. f5 {[%clk 0:00:41]}  Bc3 {[%clk 0:00:02]} 67. f6+ {[%clk 0:00:41]}  Kf8 {[%clk 0:00:02]} 68. Kf5 {[%clk 0:00:41]}  Bb4 {[%clk 0:00:01]} 69. e6 {[%clk 0:00:41]}  Bc3 {[%clk 0:00:01]} 70. e7+ {[%clk 0:00:40]} 1-0


[Site "https://www.chess.com"]

[Event "Titled Tuesday Blitz December 20 Late 2022"]
[White "Kim, Sergey"]
[Black "Ansh M Shah"]
[WhiteFideId "13700570"]
[BlackFideId "25033379"]
[WhiteElo "2488"]
[BlackElo "2084"]
[Result "1/2-1/2"]
[Round "08"]
[TimeControl "180+1"]
[Date "2022.12.21"]
[WhiteClock "0:00:27"]
[BlackClock "0:00:18"]

1. d4 {[%clk 0:03:00]}  Nf6 {[%clk 0:02:59]} 2. c4 {[%clk 0:03:00]}  e6 {[%clk 0:03:00]} 3. Nc3 {[%clk 0:03:00]}  d5 {[%clk 0:03:01]} 4. Nf3 {[%clk 0:02:59]}  Be7 {[%clk 0:03:01]} 5. Bf4 {[%clk 0:02:57]}  O-O {[%clk 0:03:02]} 6. e3 {[%clk 0:02:58]}  c6 {[%clk 0:03:02]} 7. c5 {[%clk 0:02:58]}  Nbd7 {[%clk 0:02:59]} 8. h3 {[%clk 0:02:57]}  b6 {[%clk 0:03:00]} 9. b4 {[%clk 0:02:56]}  a5 {[%clk 0:03:00]} 10. a3 {[%clk 0:02:56]}  Ba6 {[%clk 0:03:01]} 11. Bxa6 {[%clk 0:02:55]}  Rxa6 {[%clk 0:03:02]} 12. O-O {[%clk 0:02:54]}  Qa8 {[%clk 0:02:58]} 13. Qb1 {[%clk 0:02:49]}  Ne4 {[%clk 0:02:47]} 14. Nxe4 {[%clk 0:02:40]}  dxe4 {[%clk 0:02:48]} 15. Nd2 {[%clk 0:02:40]}  Nf6 {[%clk 0:02:47]} 16. Nc4 {[%clk 0:02:38]}  axb4 {[%clk 0:02:42]} 17. axb4 {[%clk 0:02:38]}  Rxa1 {[%clk 0:02:22]} 18. Qxa1 {[%clk 0:02:37]}  Nd5 {[%clk 0:02:23]} 19. Qxa8 {[%clk 0:02:06]}  Rxa8 {[%clk 0:02:24]} 20. Nxb6 {[%clk 0:02:06]}  Ra7 {[%clk 0:01:45]} 21. Nxd5 {[%clk 0:01:46]}  exd5 {[%clk 0:01:46]} 22. Rb1 {[%clk 0:01:45]}  Rb7 {[%clk 0:01:46]} 23. f3 {[%clk 0:01:43]}  g5 {[%clk 0:01:43]} 24. Be5 {[%clk 0:01:39]}  f6 {[%clk 0:01:43]} 25. Bg3 {[%clk 0:01:37]}  f5 {[%clk 0:01:40]} 26. f4 {[%clk 0:01:34]}  h6 {[%clk 0:01:36]} 27. Kf2 {[%clk 0:01:31]}  Kf7 {[%clk 0:01:34]} 28. Ke2 {[%clk 0:01:31]}  Ke6 {[%clk 0:01:34]} 29. Kd2 {[%clk 0:01:31]}  Kd7 {[%clk 0:01:35]} 30. Kc3 {[%clk 0:01:30]}  Ra7 {[%clk 0:01:35]} 31. b5 {[%clk 0:01:28]}  Ra3+ {[%clk 0:01:30]} 32. Kc2 {[%clk 0:01:08]}  cxb5 {[%clk 0:00:55]} 33. fxg5 {[%clk 0:01:01]}  Bxg5 {[%clk 0:00:52]} 34. Rxb5 {[%clk 0:00:53]}  Rxe3 {[%clk 0:00:52]} 35. Rb7+ {[%clk 0:00:44]}  Kc6 {[%clk 0:00:25]} 36. Rb6+ {[%clk 0:00:39]}  Kd7 {[%clk 0:00:24]} 37. Rb7+ {[%clk 0:00:32]}  Kc8 {[%clk 0:00:19]} 38. Rb8+ {[%clk 0:00:28]}  Kd7 {[%clk 0:00:18]} 39. Rb7+ {[%clk 0:00:27]} 1/2-1/2


[Site "https://www.chess.com"]

[Event "Titled Tuesday Blitz December 20 Late 2022"]
[White "Kohler, Aran"]
[Black "Curtis, John"]
[WhiteFideId "1002856"]
[BlackFideId "3200256"]
[WhiteElo "2340"]
[BlackElo "2203"]
[Result "0-1"]
[Round "08"]
[TimeControl "180+1"]
[Date "2022.12.21"]
[WhiteClock "0:01:14"]
[BlackClock "0:01:54"]

1. e4 {[%clk 0:02:57]}  c5 {[%clk 0:02:58]} 2. Nf3 {[%clk 0:02:57]}  d6 {[%clk 0:02:58]} 3. d4 {[%clk 0:02:57]}  cxd4 {[%clk 0:02:59]} 4. Nxd4 {[%clk 0:02:57]}  Nf6 {[%clk 0:02:59]} 5. Nc3 {[%clk 0:02:58]}  a6 {[%clk 0:02:58]} 6. Bg5 {[%clk 0:02:57]}  e6 {[%clk 0:02:58]} 7. f4 {[%clk 0:02:57]}  Nbd7 {[%clk 0:02:57]} 8. Qf3 {[%clk 0:02:56]}  Qc7 {[%clk 0:02:57]} 9. O-O-O {[%clk 0:02:55]}  b5 {[%clk 0:02:54]} 10. Bd3 {[%clk 0:02:53]}  b4 {[%clk 0:02:53]} 11. Nce2 {[%clk 0:02:45]}  Bb7 {[%clk 0:02:50]} 12. Ng3 {[%clk 0:02:35]}  g6 {[%clk 0:02:49]} 13. Rhe1 {[%clk 0:02:32]}  Be7 {[%clk 0:02:49]} 14. Bh6 {[%clk 0:02:28]}  O-O-O {[%clk 0:02:35]} 15. Kb1 {[%clk 0:02:26]}  Kb8 {[%clk 0:02:35]} 16. Rc1 {[%clk 0:02:23]}  Rc8 {[%clk 0:02:35]} 17. Qe2 {[%clk 0:02:04]}  Nc5 {[%clk 0:02:22]} 18. e5 {[%clk 0:01:51]}  Nd5 {[%clk 0:02:13]} 19. Bg7 {[%clk 0:01:47]}  Rhg8 {[%clk 0:02:04]} 20. exd6 {[%clk 0:01:44]}  Bxd6 {[%clk 0:02:01]} 21. Be5 {[%clk 0:01:41]}  Nxf4 {[%clk 0:01:57]} 22. Bxd6 {[%clk 0:01:23]}  Qxd6 {[%clk 0:01:55]} 23. Qe5 {[%clk 0:01:13]}  Qxe5 {[%clk 0:01:55]} 24. Rxe5 {[%clk 0:01:13]}  Ncxd3 {[%clk 0:01:55]} 25. cxd3 {[%clk 0:01:14]}  Rxc1+ {[%clk 0:01:54]} 0-1


[Site "https://www.chess.com"]

[Event "Titled Tuesday Blitz December 20 Late 2022"]
[White "Krishnan, Varun"]
[Black "Ter-Sahakyan, Samvel"]
[WhiteFideId "5054508"]
[BlackFideId "13302531"]
[WhiteElo "2618"]
[BlackElo "2585"]
[Result "0-1"]
[Round "08"]
[TimeControl "180+1"]
[Date "2022.12.20"]
[WhiteClock "0:01:28"]
[BlackClock "0:01:33"]

1. e4 {[%clk 0:02:55]}  c6 {[%clk 0:02:57]} 2. d4 {[%clk 0:02:52]}  d5 {[%clk 0:02:58]} 3. exd5 {[%clk 0:02:53]}  cxd5 {[%clk 0:02:58]} 4. c4 {[%clk 0:02:53]}  Nf6 {[%clk 0:02:58]} 5. Nc3 {[%clk 0:02:54]}  g6 {[%clk 0:02:54]} 6. Qb3 {[%clk 0:02:52]}  Bg7 {[%clk 0:02:52]} 7. cxd5 {[%clk 0:02:52]}  O-O {[%clk 0:02:52]} 8. Be2 {[%clk 0:02:52]}  Na6 {[%clk 0:02:48]} 9. Bf3 {[%clk 0:02:51]}  Qb6 {[%clk 0:02:46]} 10. Qxb6 {[%clk 0:02:42]}  axb6 {[%clk 0:02:46]} 11. Nge2 {[%clk 0:02:42]}  Nb4 {[%clk 0:02:24]} 12. Kd1 {[%clk 0:02:26]}  Rd8 {[%clk 0:02:17]} 13. Nf4 {[%clk 0:02:15]}  Bf5 {[%clk 0:02:13]} 14. Be3 {[%clk 0:02:04]}  g5 {[%clk 0:01:57]} 15. Nh5 {[%clk 0:02:03]}  Nxh5 {[%clk 0:01:52]} 16. Bxh5 {[%clk 0:02:02]}  Nxd5 {[%clk 0:01:51]} 17. Nxd5 {[%clk 0:01:58]}  Rxd5 {[%clk 0:01:50]} 18. Bf3 {[%clk 0:01:57]}  Rd7 {[%clk 0:01:50]} 19. Ke2 {[%clk 0:01:55]}  g4 {[%clk 0:01:50]} 20. Bxb7 {[%clk 0:01:50]}  Rxb7 {[%clk 0:01:49]} 21. a4 {[%clk 0:01:48]}  Bf6 {[%clk 0:01:44]} 22. Rhd1 {[%clk 0:01:46]}  Kg7 {[%clk 0:01:44]} 23. f3 {[%clk 0:01:45]}  h5 {[%clk 0:01:43]} 24. b4 {[%clk 0:01:43]}  Rba7 {[%clk 0:01:41]} 25. a5 {[%clk 0:01:43]}  bxa5 {[%clk 0:01:41]} 26. b5 {[%clk 0:01:44]}  Rb7 {[%clk 0:01:40]} 27. Ra4 {[%clk 0:01:39]}  Bc2 {[%clk 0:01:39]} 28. Rc4 {[%clk 0:01:30]}  Bxd1+ {[%clk 0:01:39]} 29. Kxd1 {[%clk 0:01:31]}  Rxb5 {[%clk 0:01:38]} 30. fxg4 {[%clk 0:01:30]}  hxg4 {[%clk 0:01:38]} 31. Ke2 {[%clk 0:01:30]}  a4 {[%clk 0:01:38]} 32. d5 {[%clk 0:01:29]}  Rxd5 {[%clk 0:01:33]} 33. Rxg4+ {[%clk 0:01:28]}  Kh7 {[%clk 0:01:34]} 34. Rh4+ {[%clk 0:01:28]}  Bxh4 {[%clk 0:01:33]} 0-1


[Site "https://www.chess.com"]

[Event "Titled Tuesday Blitz December 20 Late 2022"]
[White "Makarian, Rudik"]
[Black "Andreikin, Dmitry"]
[WhiteFideId "44105681"]
[BlackFideId "4158814"]
[WhiteElo "2440"]
[BlackElo "2735"]
[Result "1-0"]
[Round "08"]
[TimeControl "180+1"]
[Date "2022.12.20"]
[WhiteClock "0:00:13"]
[BlackClock "0:00:01"]

1. Nf3 {[%clk 0:03:00]}  Nf6 {[%clk 0:02:59]} 2. g3 {[%clk 0:03:01]}  b5 {[%clk 0:02:51]} 3. Bg2 {[%clk 0:03:00]}  Bb7 {[%clk 0:02:51]} 4. d3 {[%clk 0:02:59]}  e6 {[%clk 0:02:50]} 5. e4 {[%clk 0:02:58]}  d6 {[%clk 0:02:50]} 6. Na3 {[%clk 0:02:54]}  a6 {[%clk 0:02:49]} 7. c4 {[%clk 0:02:54]}  b4 {[%clk 0:02:43]} 8. Qa4+ {[%clk 0:02:53]}  Nc6 {[%clk 0:02:34]} 9. Nc2 {[%clk 0:02:41]}  a5 {[%clk 0:02:18]} 10. O-O {[%clk 0:02:29]}  Nd7 {[%clk 0:02:16]} 11. Ne3 {[%clk 0:02:26]}  Nc5 {[%clk 0:02:07]} 12. Qd1 {[%clk 0:02:26]}  e5 {[%clk 0:02:00]} 13. Nd5 {[%clk 0:02:14]}  Be7 {[%clk 0:01:56]} 14. h4 {[%clk 0:02:07]}  Ne6 {[%clk 0:01:54]} 15. Be3 {[%clk 0:02:04]}  O-O {[%clk 0:01:51]} 16. Qd2 {[%clk 0:02:04]}  Ncd4 {[%clk 0:01:33]} 17. Bxd4 {[%clk 0:01:58]}  exd4 {[%clk 0:01:31]} 18. Nf4 {[%clk 0:01:53]}  c5 {[%clk 0:01:21]} 19. Rae1 {[%clk 0:01:49]}  Bc8 {[%clk 0:01:20]} 20. e5 {[%clk 0:01:47]}  Ra6 {[%clk 0:01:18]} 21. Nd5 {[%clk 0:01:44]}  Re8 {[%clk 0:01:12]} 22. Re2 {[%clk 0:01:41]}  Bf8 {[%clk 0:01:10]} 23. Rfe1 {[%clk 0:01:41]}  h6 {[%clk 0:01:10]} 24. exd6 {[%clk 0:01:27]}  Bxd6 {[%clk 0:00:59]} 25. Ne5 {[%clk 0:01:27]}  a4 {[%clk 0:00:55]} 26. Ng4 {[%clk 0:01:22]}  Bf8 {[%clk 0:00:46]} 27. Ne5 {[%clk 0:01:20]}  b3 {[%clk 0:00:44]} 28. a3 {[%clk 0:01:19]}  Qa5 {[%clk 0:00:40]} 29. Qd1 {[%clk 0:01:13]}  Qd8 {[%clk 0:00:29]} 30. Re4 {[%clk 0:01:05]}  Bb7 {[%clk 0:00:25]} 31. Qh5 {[%clk 0:01:04]}  g6 {[%clk 0:00:21]} 32. Qf3 {[%clk 0:00:45]}  f5 {[%clk 0:00:19]} 33. R4e2 {[%clk 0:00:44]}  Ng7 {[%clk 0:00:17]} 34. g4 {[%clk 0:00:38]}  Rae6 {[%clk 0:00:14]} 35. Qg3 {[%clk 0:00:26]}  Bd6 {[%clk 0:00:12]} 36. f4 {[%clk 0:00:25]}  Kh7 {[%clk 0:00:07]} 37. h5 {[%clk 0:00:17]}  Bxe5 {[%clk 0:00:06]} 38. Rxe5 {[%clk 0:00:15]}  Rxe5 {[%clk 0:00:06]} 39. hxg6+ {[%clk 0:00:15]}  Kh8 {[%clk 0:00:02]} 40. Rxe5 {[%clk 0:00:14]}  Rxe5 {[%clk 0:00:02]} 41. fxe5 {[%clk 0:00:15]}  Qg5 {[%clk 0:00:02]} 42. e6 {[%clk 0:00:13]}  Qxg4 {[%clk 0:00:01]} 43. Qb8+ {[%clk 0:00:13]} 1-0


[Site "https://www.chess.com"]